Cogmind - Beta 12 @@@ ROGUE MODE // 2023.11.25 @ 22:48:42 Player: User Result: Self-destructed Performance ------------- Evolutions (3) 1500 Regions Visited (6) 1200 Robots Destroyed (58) 290 Value Destroyed (1899) 1899 Prototype IDs (5) 100 Alien Tech Used (0) 0 Bonus (11) 11 TOTAL SCORE: 5000 Bonus ------- High Alert Combat Kills 11 Cogmind --------- Core Integrity 259/700 Matter 216/450 Energy 150/150 System Corruption 11% Temperature Hot (289) Movement Rolling (115) Ox1 Location -7/Lower Caves Parts ------- > --- POWER (1) -------- Micro Nuclear Core > --- PROPULSION (3) --- Armored Huge Wheel > --- UTILITY (6) ------ Large Storage Unit Compact Matter Pod Improved Targeting Computer Improved Light Armor Plating > --- WEAPON (3) ------- Advanced Assault Cannon Gauss Cannon > --- INVENTORY (15) --- Deuterium Engine Medium Treads Improved Titanium Leg Improved Targeting Computer Transmission Jammer Core Shielding Long-range Tractor Beam KE Penetrator Peak State ------------ > --- POWER ------------ Heavy Deuterium Engine > --- PROPULSION ------- Armored Huge Wheel > --- UTILITY ---------- Large Storage Unit Compact Matter Pod Improved Targeting Computer Armor Integrity Analyzer Matter Filter Improved Medium Armor Plating > --- WEAPON ----------- Gauss Rifle Gauss Rifle KE Penetrator > --- INVENTORY -------- Improved Deuterium Engine Micro Nuclear Core Medium Treads Armored Huge Wheel Improved Cooling System Improved Targeting Computer Transmission Jammer Core Shielding Improved Light Armor Plating Long-range Tractor Beam Advanced Assault Cannon Gauss Cannon Gauss Cannon [Rating: 49] Favorites ----------- Power Heavy Deuterium Engine Engine Heavy Deuterium Engine Power Core Micro Nuclear Core Propulsion Aluminum Leg Treads Light Treads Leg Aluminum Leg Wheel Armored Huge Wheel Utility Compact Matter Pod Device Matter Filter Storage Compact Matter Pod Processor Improved Targeting Computer Protection Improved Medium Armor Plating Weapon Gauss Rifle Energy Gun EM Pulse Gun Ballistic Gun Gauss Rifle Ballistic Cannon Gauss Cannon Launcher Rocket Launcher Build | -11 -10 -9 -8 -7 -7 -7 ------- Run | Jun Mat Mat Mat Fac Low Low Slots Evolved 6 | . . 2 2 2 . . Power . | . . . . . . . Propulsion 1 | . . 1 . . . . Utility 4 | . . 1 2 1 . . Weapon 1 | . . . . 1 . . Parts Attached 67 | 6 6 11 13 16 8 7 Power 7 | 1 1 2 . 1 1 1 Engine 6 | 1 1 2 . 1 1 . Core 1 | . . . . . . 1 Reactor . | . . . . . . . Propulsion 14 | 2 . 5 4 2 1 . Treads 4 | . . 3 1 . . . Leg 4 | 2 . 2 . . . . Wheel 6 | . . . 3 2 1 . Hover . | . . . . . . . Flight . | . . . . . . . Utility 25 | 1 2 2 5 9 3 3 Device 8 | . . 1 2 3 1 1 Storage 6 | 1 2 . . 3 . . Processor 3 | . . . 1 1 1 . Hackware . | . . . . . . . Protection 8 | . . 1 2 2 1 2 Artifact . | . . . . . . . Weapon 21 | 2 3 2 4 4 3 3 Energy Gun 3 | 1 1 1 . . . . Energy Cannon . | . . . . . . . Ballistic Gun 9 | 1 . 1 2 3 1 1 Ballistic Cannon 6 | . 1 . . 1 2 2 Launcher 3 | . 1 . 2 . . . Special Weapon . | . . . . . . . Impact Weapon . | . . . . . . . Slashing Weapon . | . . . . . . . Piercing Weapon . | . . . . . . . Special Melee Weapon . | . . . . . . . Unidentified Prototypes 1 | . . . . 1 . . Parts Lost 32 | . 2 5 9 1 7 8 Power 3 | . 1 . . . 1 1 Propulsion 7 | . . 2 3 1 1 . Utility 12 | . . 1 3 . 3 5 Weapon 10 | . 1 2 3 . 2 2 Highest Loss Streak 8 | . 1 3 6 1 4 8 To Critical Strikes 1 | . . . . . 1 . Average Slot Usage (%) 82 | . 89 90 71 90 79 76 Engine 8 | . 13 11 9 7 7 6 Treads 3 | . . 7 14 . . . Leg 5 | . 28 20 . . . . Wheel 7 | . . . 4 16 7 7 Device 8 | . . 2 4 14 10 6 Storage 16 | . 18 22 18 15 15 15 Processor 6 | . . . . 7 12 10 Protection 5 | . . 4 7 5 5 8 Energy Gun 2 | . 6 14 1 . . . Ballistic Gun 12 | . 14 6 6 15 16 6 Ballistic Cannon 3 | . 4 . . 5 2 12 Launcher 1 | . 2 . 4 . . . Naked Turns . | . . . . . . . Heaviest Build 57 | 12 20 27 30 54 57 55 Greatest Support 60 | 20 20 60 60 42 28 28 Greatest Overweight (x) 2 | . . 1 2 1 2 1 Average Overweight (x) . | . . . . . 1 1 Largest Inventory Capacity 15 | 8 10 10 10 15 15 15 Average Capacity 12 | 7 9 10 10 13 15 15 Most Carried 15 | 6 10 10 10 15 15 14 Average Carried 11 | 3 9 9 8 12 13 11 Final Capacity 15 | 8 10 10 10 15 15 15 Final Carried 15 | 6 10 10 9 15 14 8 Class Distribution -------------------- 56% | Mutant 21% | Gunner 16% | Scavenger-Tank 5% | Scavenger-Mutant Dominant Class ---------------- Mutant | -10/Materials Mutant | -9/Materials Mutant | -8/Materials Scavenger-Tank | -7/Factory Mutant | -7/Lower Caves Mutant | -7/Lower Caves Resources | -11 -10 -9 -8 -7 -7 -7 ----------- Run | Jun Mat Mat Mat Fac Low Low Matter Collected 1823 | 244 38 300 350 254 637 . Remotely . | . . . . . . . Salvage Created 2124 | . 189 360 594 267 575 139 Parts 122 | . 13 29 21 25 31 3 Haulers Intercepted 1 | . . . 1 . . . Recyclers Shooed 3 | . 1 . 2 . . . Parts Field Recycled . | . . . . . . . Retrieved Matter . | . . . . . . . Parts Self-Destructed 35 | . . . . . 30 5 Prevented 1 | . . . . . . 1 Kills | -11 -10 -9 -8 -7 -7 -7 ------- Run | Jun Mat Mat Mat Fac Low Low Combat Hostiles Destroyed 42 | . 6 7 6 6 13 4 Guns 26 | . 1 6 1 4 12 2 Cannons 8 | . 3 . . 2 1 2 AOE 8 | . 2 1 5 . . . Classes Destroyed 13 | . 5 2 3 . 2 1 Worker 1 | . 1 . . . . . Builder 3 | . 1 . . 2 . . Tunneler 1 | . . . 1 . . . Hauler 1 | . . . 1 . . . Recycler 5 | . . 1 4 . . . Watcher 5 | . 2 . 2 1 . . Swarmer 12 | . 3 2 . 3 4 . Grunt 13 | . 3 3 3 . 3 1 Brawler 2 | . . . . . 1 1 Duelist 3 | . . . . . 3 . Sentry 9 | . . 2 2 2 2 1 Hunter 2 | . . . 1 1 . . Programmer 1 | . . . . . . 1 Best Kill Streak 8 | . 8 4 4 4 7 4 Combat Bots Only 7 | . 5 3 3 3 7 4 Max Kills in Single Turn 2 | . 2 1 2 2 2 1 Gunslinging 1 | . . . . . 1 . Exploded 2 | . 1 1 2 . . . Melee . | . . . . . . . Uniques/NPCs Destroyed . | . . . . . . . Combat | -11 -10 -9 -8 -7 -7 -7 -------- Run | Jun Mat Mat Mat Fac Low Low Damage Taken 4720 | . 394 359 1001 716 1172 1078 Core 764 | . 103 75 145 80 221 140 Absorbed by Shields . | . . . . . . . Redirected to Shielding 50 | . . . 50 . . . Core Remaining (%) 78 | 100 58 81 73 . . . Volleys Fired 185 | . 26 26 60 28 31 14 Largest 3 | . 2 2 2 3 3 3 Hottest 144 | . 60 80 60 101 109 144 Shots Fired 383 | . 45 48 81 77 92 40 Gun 288 | . 31 48 62 56 81 10 Cannon 75 | . 13 . . 21 11 30 Launcher 20 | . 1 . 19 . . . Special . | . . . . . . . Kinetic 318 | . 38 15 56 77 92 40 Thermal . | . . . . . . . Explosive 20 | . 1 . 19 . . . Electromagnetic 45 | . 6 33 6 . . . Robot Hit Streak 12 | . 4 7 12 8 10 9 Robot Miss Streak 7 | . 7 3 2 3 3 2 Penetration Max 1 | . . . . . 1 . Secondary Targets 5 | . . 1 . . 4 . Max Gunslinging Chain 1 | . . 1 . . 1 . Shots Hit Robots 231 | . 22 27 59 44 54 25 Core Hits 116 | . 14 15 33 20 25 9 Critical Kills 2 | . . 1 . . 1 . Critical Parts Destroyed 3 | . . . . . 3 . Critical Strikes 20 | . 3 1 . 2 8 6 Destroy 5 | . . 1 . . 4 . Blast 15 | . 3 . . 2 4 6 Melee Attacks . | . . . . . . . Impact . | . . . . . . . Slashing . | . . . . . . . Piercing . | . . . . . . . Sneak Attacks . | . . . . . . . Combat Hostiles . | . . . . . . . Follow-up Attacks . | . . . . . . . Damage Inflicted 5425 | . 610 357 1321 917 1421 799 Guns 2981 | . 235 322 528 551 1150 195 Cannons 1433 | . 192 . . 366 271 604 Explosions 1011 | . 183 35 793 . . . Melee . | . . . . . . . Ramming . | . . . . . . . Kinetic 4102 | . 385 99 481 917 1421 799 Thermal 80 | . 45 35 . . . . Explosive 931 | . 138 . 793 . . . Electromagnetic 312 | . 42 223 47 . . . Impact . | . . . . . . . Slashing . | . . . . . . . Piercing . | . . . . . . . Highest Corruption 11 | . 3 . . . 9 11 Average Corruption 8 | . 2 . . . 9 10 Corruption Purged . | . . . . . . . Corruption Blocked . | . . . . . . . Effects 23 | . . . . . 21 2 Message Errors 9 | . . . . . 8 1 Matter Fused 4 | . . . . . 4 . Heat Flow Errors 2 | . . . . . 2 . Energy Discharges 4 | . . . . . 3 1 Parts Rejected 1 | . . . . . 1 . Misfires 3 | . . . . . 3 . Overload Shots . | . . . . . . . Overflow Damage 44 | . . . 44 . . . Projectiles . | . . . . . . . Explosions 44 | . . . 44 . . . Melee . | . . . . . . . Knockbacks 13 | . 4 . . 5 . 4 Impact . | . . . . . . . Kinetic 12 | . 4 . . 5 . 3 Secondary 1 | . . . . . . 1 Self-Inflicted Damage 293 | . 12 . 281 . . . Shots 12 | . 1 . 11 . . . Rammed . | . . . . . . . Targets Rammed . | . . . . . . . Kicked . | . . . . . . . Crushed . | . . . . . . . Highest Temperature 331 | . 53 207 . 13 143 331 Average Temperature 83 | . 22 74 . 6 60 184 Received Heat Transfer 1491 | . 117 138 351 114 177 594 Effects 4 | . . . . . . 4 Energy Bleed 1 | . . . . . . 1 Interference 3 | . . . . . . 3 Siege Activations . | . . . . . . . Robots Corrupted . | . . . . . . . Combat Hostiles . | . . . . . . . Parts Fried . | . . . . . . . Impact Corruptions . | . . . . . . . Robots Melted . | . . . . . . . Combat Hostiles . | . . . . . . . Parts Melted . | . . . . . . . Heat Transferred 50 | . . 50 . . . . Parts Sabotaged . | . . . . . . . Parts Stolen . | . . . . . . . Parts Stripped . | . . . . . . . Power Chain Reactions 2 | . 1 1 . . . . Missiles Intercepted . | . . . . . . . Alert | -11 -10 -9 -8 -7 -7 -7 ------- Run | Jun Mat Mat Mat Fac Low Low Peak Influence 435 | . 180 301 435 255 . . Initial 126 | . . 76 126 119 . . Average 191 | . 80 218 290 179 . . Maximum Alert Level 2 | . . 1 2 1 . . Low Security (%) 62 | 100 100 24 29 79 . . Level 1 28 | . . 75 35 20 . . Level 2 9 | . . . 34 . . . Level 3 . | . . . . . . . Level 4 . | . . . . . . . Level 5 . | . . . . . . . High Security . | . . . . . . . Max Security . | . . . . . . . Squads Dispatched 4 | . . . 1 2 . 1 Investigation 1 | . . . . 1 . . Extermination . | . . . . . . . Reinforcement 1 | . . . . 1 . . Assault 1 | . . . . . . 1 Garrison 1 | . . . 1 . . . Intercept . | . . . . . . . Searches Triggered . | . . . . . . . Construction Impeded . | . . . . . . . Haulers Reinforced . | . . . . . . . Active Scanning Responses . | . . . . . . . Cargo Convoy Interrupts . | . . . . . . . Stealth | -11 -10 -9 -8 -7 -7 -7 --------- Run | Jun Mat Mat Mat Fac Low Low Distress Signals 2 | . 1 . . 1 . . Communications Jammed . | . . . . . . . Distress Signals . | . . . . . . . Times Spotted 65 | . 9 10 9 10 15 12 Peak Tracking Total 7 | . 5 4 3 3 7 7 Tactical Retreats 3 | . . 1 . . 2 . Traps | -11 -10 -9 -8 -7 -7 -7 ------- Run | Jun Mat Mat Mat Fac Low Low Traps Triggered 3 | . 2 . . 1 . . Indirectly . | . . . . . . . Trap Hack Attempts . | . . . . . . . Triggered . | . . . . . . . Disarmed . | . . . . . . . Reprogrammed . | . . . . . . . Reused . | . . . . . . . Traps Extracted . | . . . . . . . Installed . | . . . . . . . Triggered 2 | . . . . . . 2 Machines | -11 -10 -9 -8 -7 -7 -7 ---------- Run | Jun Mat Mat Mat Fac Low Low Machines Disabled 6 | . . . 5 . . 1 Max in Single Turn 1 | . . . 1 . . 1 Garrison Access 1 | . . . 1 . . . Machines Repaired . | . . . . . . . Machines Sabotaged . | . . . . . . . Overloaded Fab Kills . | . . . . . . . Hacking | -11 -10 -9 -8 -7 -7 -7 --------- Run | Jun Mat Mat Mat Fac Low Low Machines Accessed 7 | . 3 . 2 2 . . Terminals 4 | . 3 . . 1 . . Fabricators . | . . . . . . . Repair Stations . | . . . . . . . Recycling Units 2 | . . . 1 1 . . Scanalyzers . | . . . . . . . Garrison Access 1 | . . . 1 . . . Total Hacks 17 | . 8 . 5 4 . . Successful 8 | . 4 . 3 1 . . Failed 9 | . 4 . 2 3 . . Catastrophic 1 | . 1 . . . . . Database Lockouts . | . . . . . . . Manual . | . . . . . . . Terminals 10 | . 8 . . 2 . . Fabricators . | . . . . . . . Repair Stations . | . . . . . . . Recycling Units 5 | . . . 3 2 . . Scanalyzers . | . . . . . . . Garrison Access 2 | . . . 2 . . . Terminal Hacks 5 | . 4 . . 1 . . Prototype ID Bank 2 | . 2 . . . . . Emergency Access Points 1 | . 1 . . . . . Locate Traps 1 | . . . . 1 . . Hauler Manifests 1 | . 1 . . . . . Fabricator Hacks . | . . . . . . . Repair Station Hacks . | . . . . . . . Recycling Unit Hacks 2 | . . . 2 . . . Report Inventory 1 | . . . 1 . . . Retrieve Components 1 | . . . 1 . . . Scanalyzer . | . . . . . . . Garrison Access Hacks 1 | . . . 1 . . . Seal Access 1 | . . . 1 . . . Unauthorized Hacks . | . . . . . . . Terminals . | . . . . . . . Fabricators . | . . . . . . . Repair Stations . | . . . . . . . Recycling Units . | . . . . . . . Scanalyzers . | . . . . . . . Garrison Access . | . . . . . . . Data Cores Recovered . | . . . . . . . Used . | . . . . . . . Hacking Detections 5 | . 3 . . 2 . . Full Trace Events . | . . . . . . . Feedback Events . | . . . . . . . Feedback Blocked . | . . . . . . . Robot Schematics Acquired . | . . . . . . . Robots Built . | . . . . . . . Authchips . | . . . . . . . Time . | . . . . . . . Total Robot Build Rating . | . . . . . . . Part Schematics Acquired . | . . . . . . . Parts Built . | . . . . . . . Authchips . | . . . . . . . Time . | . . . . . . . Total Part Build Rating . | . . . . . . . Parts Repaired . | . . . . . . . Time . | . . . . . . . Parts Recycled . | . . . . . . . Recycled Matter . | . . . . . . . Retrieved Matter . | . . . . . . . Retrieved Components 4 | . . . 4 . . . Parts Scanalyzed . | . . . . . . . Part Schematics Acquired . | . . . . . . . Parts Damaged . | . . . . . . . Bothacking | -11 -10 -9 -8 -7 -7 -7 ------------ Run | Jun Mat Mat Mat Fac Low Low Used RIF Installer . | . . . . . . . Robots Hacked . | . . . . . . . Non-combat . | . . . . . . . Combat . | . . . . . . . Robot Hacks Applied . | . . . . . . . Relay Couplers Released . | . . . . . . . Fabnet Peak Effective % . | . . . . . . . Robots Rewired . | . . . . . . . Allies Hacked . | . . . . . . . Hacks Repelled . | . . . . . . . Allies | -11 -10 -9 -8 -7 -7 -7 -------- Run | Jun Mat Mat Mat Fac Low Low Total Allies . | . . . . . . . Largest Group . | . . . . . . . Highest-Rated Group . | . . . . . . . Highest-Rated Ally . | . . . . . . . Total Orders . | . . . . . . . Ally Attacks . | . . . . . . . Total Damage . | . . . . . . . Kills . | . . . . . . . Allies Corrupted . | . . . . . . . Allies Melted . | . . . . . . . Intel | -11 -10 -9 -8 -7 -7 -7 ------- Run | Jun Mat Mat Mat Fac Low Low Robot Analysis Total . | . . . . . . . Derelict Logs Recovered 2 | . . . . . 2 . Drone Launches . | . . . . . . . Drone Recoveries . | . . . . . . . Exploration | -11 -10 -9 -8 -7 -7 -7 ------------- Run | Jun Mat Mat Mat Fac Low Low Turns Passed 2666 | 83 310 247 514 637 802 73 Spaces Moved 1609 | 57 180 110 200 461 584 17 Core 4 | 4 . . . . . . Treads 180 | . . 30 150 . . . Legs 313 | 53 180 80 . . . . Wheels 1112 | . . . 50 461 584 17 Hover . | . . . . . . . Flight . | . . . . . . . Fastest Speed 50 | 50 120 120 93 93 115 115 Average Speed 122 | 115 120 136 173 106 116 115 Slowest Speed 240 | 120 120 190 240 115 130 115 Overloaded Moves . | . . . . . . . Propulsion Burnouts . | . . . . . . . Robots Hopped . | . . . . . . . Cave-ins Triggered . | . . . . . . . Exploration Rate (%) 26 | 4 46 13 21 18 78 6 Regions Visited 6 Branch Regions 2 Pre-discovered Areas . | . . . . . . . Known Exits Taken 1 | . . . . . 1 . Unknown Exits Taken 5 | 1 1 1 1 1 . . Scrap Searched 4 | . . . . . 4 . Spaces Dug . | . . . . . . . Terrain Destroyed 106 | . 15 . 68 8 7 8 Melee . | . . . . . . . Projectile 22 | . . . . 8 6 8 AOE 83 | . 15 . 68 . . . Terrain Rammed . | . . . . . . . Walls Destroyed . | . . . . . . . Machines Disabled . | . . . . . . . Actions | -11 -10 -9 -8 -7 -7 -7 --------- Run | Jun Mat Mat Mat Fac Low Low Total 2000 | 74 230 163 295 562 638 38 Wait 10 | . . . 5 4 1 . Move 1603 | 56 179 109 199 460 583 17 Hop . | . . . . . . . Pick Up 90 | 12 13 12 14 29 10 . Fast Attach . | . . . . . . . Attach 48 | 6 3 7 11 8 7 6 Detach 2 | . . . . 2 . . Swap 19 | . 3 4 2 8 1 1 Drop 41 | . 6 5 4 23 3 . Fire 185 | . 26 26 60 28 31 14 Melee . | . . . . . . . Ram . | . . . . . . . Kick . | . . . . . . . Crush . | . . . . . . . Escape Stasis . | . . . . . . . Rewire 2 | . . . . . 2 . Trap . | . . . . . . . Miscellaneous . | . . . . . . . Route ------- -11/Junkyard -10/Materials -9/Materials -8/Materials -7/Factory -7/Lower Caves -7/Lower Caves History --------- Turn | Location | Event 4 | -11/Junkyard | Discovered new exit (range 15) 84 | -11/Junkyard | Entered Materials 314 | -10/Materials | Build established: Mutant 384 | -10/Materials | Discovered new exit (range 8) 394 | -10/Materials | Entered another Materials area 394 | -9/Materials | Evolved 2 slots: Propulsion x1, Utility x1 565 | -9/Materials | Lost 3 parts (1n1u1w) 603 | -9/Materials | Discovered new exit (range 15) 641 | -9/Materials | Entered another Materials area 641 | -8/Materials | Evolved 2 slots: Utility x2 692 | -8/Materials | Garrison activated, responded to threat 891 | -8/Materials | Lost 6 parts (3n2u1w) 1147 | -8/Materials | Discovered new exit (range 5) 1155 | -8/Materials | Entered Factory 1155 | -7/Factory | Evolved 2 slots: Utility x1, Weapon x1 1523 | -7/Factory | Build established: Scavenger-Tank 1784 | -7/Factory | Discovered new exit (range 8) 1792 | -7/Factory | Entered Lower Caves 1868 | -7/Lower Caves | Learned Factory garrison access intel 1941 | -7/Lower Caves | Build established: Gunner 1962 | -7/Lower Caves | Attracted the attention of an 0b10 outpost 2027 | -7/Lower Caves | Lost 4 parts (3u1w) 2030 | -7/Lower Caves | Destroyed 7 combat bots 2318 | -7/Lower Caves | Identified exit to Lower Caves 2405 | -7/Lower Caves | Attracted the attention of an 0b10 checkpoint 2486 | -7/Lower Caves | Build established: Mutant 2594 | -7/Lower Caves | Entered another Lower Caves area 2619 | -7/Lower Caves | Attracted the attention of an 0b10 outpost 2619 | -7/Lower Caves | System corruption reached 10% 2643 | -7/Lower Caves | Core integrity fell below 50% 2667 | -7/Lower Caves | Self-destructed Last Messages --------------- 02652_ Slug penetrates G-47 Trooper. 02652_ G-47 Trooper Aluminum Leg blasted off. 02655_ Slug penetrates Y-64 Sentinel. 02656_ Critical hit (Burn: +37). 02656_ Imp. Deuterium Engine destroyed. 02659_ Slug penetrates Y-64 Sentinel. 02659_ Y-64 Sentinel destroyed. 02660_ Imp. Medium Armor Plating destroyed. 02662_ Imp. Cooling System destroyed. 02663_ Slug penetrates G-50 Soldier. 02663_ G-47 Trooper suffers critical hit (Blast). 02663_ Destroyed Imp. Heat Sink. 02663_ G-47 Trooper knocked back. 02663_ Slug penetrates G-50 Soldier. 02664_ Wave Gun fries itself beyond repair. 02664_ Gauss Rifle destroyed. 02665_ Overheating: System interference. 02665_ Imp. Targeting Computer temporarily disabled. 02665_ Adv. Assault Cannon temporarily disabled. 02666_ Critical hit (Burn: +37). Map ----- +----------------------------------------------------+ | ?????????????????????????????????????????????????? | | ?????????????????????????????????????????????????? | | ?????????????????????????????????????????????????? | | ?????????????????????????????????????????????????? | | ?????????????????????????????????????????????????? | | ?????????????????????????????????????????????????? | | ?????????????????????????????????????????????????? | | ?????????????????????????????????????????????????? | | ?????????????????????????????????????????????????? | | ?????????????????????????????????????????????????? | | ???????????????????????????????# ?? ?????????????? | | ?????????????????????????????? ? ?????????????? | | ?????????????????????????##??? ?? ?????????????? | | ???????????????????###??? ?? ??? ?????????????? | | ?????????????????### #?# ### ??# ?????? ??????? | | ?????????????????? ?# # ??# #????? ??????? | | ??????????????????? ## # ???# ##???? #??????? | | ???????????????????? # ??"# ???? #??????? | | ????????????????????? ? #? "# #??? #??##??? | | ??????????????????????#% g# g"# ???? ## ##?? | | ????????????????????### g #""" "?# #???# ??? | | ????????????????????#; %= #;#;####%#### ?? | | ????????????????????## %%g %[ %*## ??? | | ???????????????????## gg%%i "%%% #???? | | ??????????????????## % =;# #?????????? | | ??????????????????# @ ;## #?????????? | | ??????????????????# ### ###???????? | | ??????????????????# ### #???????? | | ??????????????????## ## ## ##???????? | | ???????????????????### ######## ##????????? | | ?????????????????????# ??????# ##?????????? | | ?????????????????????# ##?????# ###??????????? | | ?????????????????????## ##??????####????????????? | | ??????????????????????####???????????????????????? | | ?????????????????????????????????????????????????? | | ?????????????????????????????????????????????????? | | ?????????????????????????????????????????????????? | | ?????????????????????????????????????????????????? | | ?????????????????????????????????????????????????? | | ?????????????????????????????????????????????????? | | ?????????????????????????????????????????????????? | | ?????????????????????????????????????????????????? | | ?????????????????????????????????????????????????? | | ?????????????????????????????????????????????????? | | ?????????????????????????????????????????????????? | | ?????????????????????????????????????????????????? | | ?????????????????????????????????????????????????? | | ?????????????????????????????????????????????????? | | ?????????????????????????????????????????????????? | | ?????????????????????????????????????????????????? | +----------------------------------------------------+ Best States ------------- Heat Dissipation 61 Energy Generation 18 Energy Capacity 310 Matter Stores 450 Matter Capacity 600 Sight Range 18 Terrain Scan Density 10 Armor Coverage 375 Weapon Shielding 33 Evasion (%) 55 Targeting Accuracy 6 Armor Integrity Analysis 30 Recoil Reduction 3 Matter Filtering 30 Kinecelleration 30 Item Schematics ----------------- None Robot Schematics ------------------ None Fabricated ------------ Nothing Alien Tech Used ----------------- None Achievements -------------- None Challenges ------------ None Game ------ Seed UtilityAblativeBeamcaster Manual? 0 Play Time 00:28:06 Cumulative 175.1 hours Start 2023.11.25 @ 22:20:18 End 2023.11.25 @ 22:48:42 Sessions 1 Manual Loads 0 Difficulty Rogue Special Mode None Game No. 149 Rogue 84 Adventurer 65 Explorer 0 Win Type - Total 14 Types 10/1/0/3/0/0/0/0/0 Lore% 73 Gallery% 81 Achievement% 69 Wizard Run 0 Options --------- ASCII 0 Keyboard 0 Movement Mouse Keybinds 0 Fullscreen 2 Font 20/Terminus Map View 66x50 Tactical HUD 1 Map Filters NONE Filters NONE Steam 1 RUN: de9dcb84-591f-4e97-b791-829448800059